bitfinex/quotes_ETHUSD_20260130
["timestamp","ask_amount","ask_price","bid_price","bid_amount"]
[1769787682073,0.01475579,2737.7,2735.1,13.21469579]
[1769787682274,1.42822791,2737.6,2735.4,0.91394311]
[1769787682810,0.01475579,2737.5,2735.4,14.1266389]
[1769787682992,1.42822791,2737.6,2735.4,14.1266389]
[1769787683909,0.78075579,2738.2,2735.4,14.1266389]
[1769787684211,0.01475579,2738.1,2735.8,13.21269579]
[1769787684395,0.01475579,2737.9,2735.8,13.21269579]
[1769787684582,0.01475579,2737.9,2735.3,6.38834511]
[1769787684583,0.01475579,2737.5,2735.2,15.46290961]
[1769787684909,0.01475579,2737.3,2735.3,1.67997429]
[1769787685104,0.01475579,2737.5,2735.5,0.91387996]
[1769787685304,0.01475579,2737.7,2735.6,0.766]
[1769787685506,0.01475579,2737.3,2735.6,0.766]
[1769787685802,0.01475579,2737.1,2735.5,0.766]
[1769787686521,0.01475579,2737.3,2735.5,0.766]
[1769787686688,0.01475579,2737.1,2735.5,0.766]
[1769787687011,0.01475579,2737.1,2735.1,0.91602046]
[1769787687218,0.01475579,2737.1,2735.3,0.766]
[1769787687512,0.01475579,2736.6,2735.1,0.002]
[1769787687923,0.01475579,2736.9,2735.1,0.002]
[1769787688134,1.35172791,2736.8,2735.1,0.002]
[1769787688622,0.01475579,2736.7,2735.1,0.002]
[1769787689021,0.01475579,2736.5,2735.1,0.002]
[1769787689321,0.01475579,2736.3,2735.1,0.002]
[1769787690300,0.01475579,2736.3,2735.3,0.002]
[1769787690729,0.01475579,2736.5,2735.3,0.002]
[1769787691351,0.01475579,2736.5,2735.1,0.002]
[1769787691352,13.51727905,2736.1,2735.1,0.002]
[1769787691500,0.01475579,2735.5,2734.0,0.002]
[1769787691702,0.01475579,2735.1,2734.0,0.002]
[1769787692015,0.01475579,2734.9,2734.0,0.002]
[1769787692218,13.51727905,2735.5,2734.0,0.002]
[1769787692438,1.35172791,2736.0,2734.0,0.002]
[1769787692642,1.4869007,2735.9,2734.1,1.39806958]
[1769787693259,0.78075579,2736.5,2734.1,1.39806958]
[1769787693427,0.78075579,2736.5,2734.1,14.61076537]
[1769787693621,0.01475579,2736.3,2734.1,14.61076537]
[1769787694262,0.78075579,2736.5,2734.1,14.61076537]
[1769787694445,0.01475579,2736.2,2734.2,1.68034423]
[1769787694753,0.01475579,2736.2,2734.3,1.62911096]
[1769787694951,0.766,2736.5,2734.3,14.84180675]
[1769787695524,0.01475579,2736.4,2734.3,14.84180675]
[1769787695720,0.766,2736.5,2734.3,1.62911096]
[1769787695924,13.50252326,2736.4,2734.1,14.12707205]
[1769787696125,0.01475579,2736.3,2734.1,14.12707205]
[1769787696327,0.01475579,2736.1,2734.1,14.12707205]
[1769787697124,0.01475579,2736.3,2734.1,14.12707205]
[1769787697437,0.01475579,2736.1,2734.1,14.12707205]
[1769787697759,0.01475579,2736.1,2734.2,1.85525827]
[1769787698058,0.01475579,2735.9,2734.2,1.85525827]
[1769787698237,13.88121047,2736.1,2734.0,0.002]
[1769787698238,0.01475579,2735.6,2734.0,0.002]
[1769787699164,0.01475579,2735.4,2734.0,0.002]
[1769787699362,13.88121047,2735.4,2734.0,0.002]
[1769787699540,0.01475579,2735.0,2734.0,0.002]
[1769787699737,0.01475579,2735.2,2734.0,0.002]
[1769787699941,1.38959663,2735.2,2734.0,0.002]
[1769787700747,3.853,2735.1,2734.0,0.002]
[1769787700962,1.38959663,2735.2,2734.0,0.002]
[1769787701173,3.86775579,2735.8,2734.0,0.002]
[1769787701174,13.88121047,2736.0,2734.0,0.002]
[1769787701391,0.01475579,2735.8,2734.0,0.002]
[1769787702037,1.40287684,2735.9,2734.0,0.002]
[1769787702236,1.38812105,2735.9,2734.0,0.002]
[1769787702965,1.38812105,2735.9,2734.2,0.002]
[1769787703269,1.40287684,2735.9,2734.2,0.002]
[1769787703474,1.52693315,2735.8,2734.2,0.002]
[1769787703969,0.01475579,2735.9,2734.3,0.766]
[1769787704375,0.01475579,2735.7,2734.2,0.002]
[1769787704971,0.001,2736.3,2734.2,13.32495438]
[1769787705474,0.01575579,2736.3,2734.2,13.32495438]
[1769787706597,0.01575579,2736.3,2734.3,0.91431079]
[1769787706752,0.01575579,2736.3,2734.4,1.78965083]
[1769787707580,0.01475579,2736.1,2734.4,1.78965083]
[1769787708464,13.88121047,2735.6,2734.4,1.78965083]
[1769787708803,0.01475579,2735.9,2734.2,13.32495438]
[1769787708958,0.01475579,2736.1,2734.2,13.32495438]
[1769787709687,0.01575579,2736.3,2734.2,13.32495438]
[1769787710376,0.001,2736.3,2734.3,0.01475579]
[1769787710583,0.001,2736.3,2734.6,13.32295438]
[1769787712095,0.01475579,2736.2,2734.4,2.24824354]
[1769787712298,0.01475579,2736.2,2734.5,0.766]
[1769787712597,0.01475579,2736.2,2734.5,1.68021173]
[1769787712794,0.01475579,2736.2,2734.5,0.766]
[1769787713001,0.01475579,2736.2,2734.2,3.65932819]
[1769787713002,0.01475579,2736.0,2734.2,0.002]
[1769787713312,13.88121047,2735.6,2734.2,0.002]
[1769787713465,13.86645468,2735.3,2734.2,0.002]
[1769787713669,0.01475579,2735.0,2734.2,0.002]
[1769787714196,0.01475579,2735.2,2734.2,0.002]
[1769787714496,13.86645468,2735.3,2734.2,0.002]
[1769787714876,1.38812105,2735.5,2734.2,0.002]
[1769787715198,13.86645468,2735.8,2734.4,0.002]
[1769787715410,0.001,2736.1,2734.4,0.002]
[1769787715597,0.001,2736.1,2734.4,0.768]
[1769787716016,0.001,2736.1,2734.4,14.09095438]
[1769787716179,0.001,2736.1,2734.6,13.32295438]
[1769787716520,0.001,2736.1,2734.7,14.6567254]
[1769787717083,0.001,2736.1,2734.8,1.01654363]
[1769787717508,0.001,2736.1,2734.9,0.767]
[1769787719212,0.001,2736.1,2734.9,1.68110267]
[1769787719411,0.001,2736.1,2734.9,15.00405705]
[1769787719639,0.001,2736.1,2735.0,15.18900417]
[1769787719827,0.001,2736.3,2735.0,15.18900417]
[1769787720549,0.0002,2736.7,2735.5,13.33771017]
[1769787720760,3.66582554,2739.0,2735.5,13.33771017]
[1769787720761,0.01475579,2739.2,2737.4,13.32295438]
[1769787721054,0.01475579,2740.7,2739.7,0.04346737]
[1769787721270,0.01475579,2740.7,2739.7,0.04426737]
[1769787721417,0.01475579,2740.7,2739.3,2.1431557]
[1769787721612,0.01475579,2740.4,2738.5,0.2335703]
[1769787721813,0.01475579,2739.5,2738.4,0.18994209]
[1769787722043,0.01475579,2739.5,2737.1,3.65346536]
[1769787722044,0.2335703,2738.3,2738.0,0.766]
[1769787722348,0.04362821,2738.9,2737.8,0.766]
[1769787722646,0.01475579,2739.3,2737.8,0.766]
[1769787722940,0.01475579,2739.6,2737.8,0.766]
[1769787723149,0.01475579,2739.8,2737.9,0.91310858]
[1769787723323,0.01475579,2739.6,2738.0,1.5002063]
[1769787724233,0.01475579,2739.2,2738.0,2.2662063]
[1769787724434,0.01475579,2739.2,2738.0,0.766]
[1769787724834,0.01475579,2739.2,2736.7,13.32295438]
[1769787724835,0.01475579,2738.9,2736.7,13.32295438]
[1769787725011,0.01475579,2738.9,2737.1,0.91336222]
[1769787725340,0.01475579,2738.9,2737.1,0.91337547]
[1769787725642,0.01475579,2739.1,2737.1,14.23632985]
[1769787725848,0.01475579,2739.1,2737.2,1.86559447]
[1769787726245,0.01475579,2739.6,2737.3,13.55652468]
[1769787726444,0.01475579,2739.4,2737.3,13.55652468]
[1769787726645,0.01475579,2739.4,2737.3,13.32295438]
[1769787727065,0.01475579,2739.6,2737.4,14.04672578]
[1769787727218,1.38951181,2739.5,2737.6,14.95993442]
[1769787727420,0.01475579,2740.1,2737.9,13.91555548]
[1769787727650,0.01475579,2740.1,2738.0,14.57915548]
[1769787727945,0.01475579,2739.3,2738.1,0.766]
[1769787728137,0.01475579,2739.5,2738.1,0.766]
[1769787728336,0.01475579,2739.7,2738.1,0.766]
[1769787728521,0.01475579,2739.5,2738.1,0.766]
[1769787729048,0.01475579,2739.7,2738.1,0.766]
[1769787729356,0.001,2738.7,2738.1,0.766]
[1769787730858,0.92703929,2740.4,2738.1,0.766]
[1769787730859,0.01475579,2740.9,2738.5,13.91555548]
[1769787731055,0.01475579,2740.7,2738.5,13.91555548]
[1769787731257,0.01475579,2740.7,2738.7,0.1024]
[1769787731459,0.01475579,2740.7,2738.7,0.82231412]
[1769787731756,0.01475579,2740.9,2738.7,14.6354696]
[1769787732060,13.88036226,2740.6,2738.2,0.01475579]
[1769787732259,13.88036226,2740.6,2738.0,0.01475579]
[1769787732260,0.01475579,2739.6,2738.0,0.766]
[1769787732558,0.01475579,2739.4,2738.0,0.766]
[1769787732868,0.01475579,2739.6,2738.0,0.766]
[1769787733434,0.01475579,2739.6,2737.5,15.21782806]
[1769787733662,0.01475579,2739.6,2737.7,0.91315952]
[1769787733860,0.01475579,2740.2,2737.6,4.41881766]
[1769787733861,0.01475579,2740.2,2738.0,0.9130651]
[1769787734028,0.01475579,2740.0,2738.0,0.9130651]
[1769787734229,0.01475579,2740.2,2738.0,14.72622058]
[1769787734545,13.88036226,2740.3,2738.1,14.04672578]
[1769787734747,0.01475579,2740.4,2738.1,14.04672578]
[1769787734748,0.01475579,2740.5,2738.3,14.04672578]
[1769787734928,0.01475579,2741.0,2738.8,14.04672578]
[1769787735339,0.01475579,2741.0,2738.9,0.9127752]
[1769787735555,0.01475579,2741.2,2739.0,13.91555548]
[1769787735759,0.01475579,2741.4,2739.1,14.04672578]
[1769787735955,1.38951181,2741.3,2739.3,0.2335703]
[1769787736161,1.38951181,2741.3,2739.5,13.81315548]
[1769787736378,0.01475579,2741.6,2739.8,13.81315548]
[1769787736527,0.01475579,2742.2,2739.9,14.04672578]
[1769787736728,0.01475579,2741.8,2739.9,13.81315548]
[1769787737041,0.01475579,2741.8,2739.1,1.89726257]
[1769787737042,13.88036226,2741.2,2739.1,1.89726257]
[1769787737229,13.88036226,2741.2,2737.7,13.82791127]
[1769787737230,0.01475579,2739.9,2737.7,14.53024147]
[1769787737566,0.01475579,2739.9,2737.2,0.01475579]
[1769787737567,0.01475579,2739.6,2737.9,0.766]
[1769787738145,0.01475579,2739.6,2737.4,0.1024]
[1769787738369,0.01475579,2739.4,2737.5,0.766]
[1769787738570,0.01475579,2739.7,2737.6,0.766]
[1769787738796,13.88036226,2740.8,2738.0,13.81315548]
[1769787738953,1.39827623,2740.6,2738.6,14.04672578]
[1769787739263,0.01475579,2742.5,2739.6,13.81315548]
[1769787739463,0.01475579,2742.5,2739.8,14.16388157]
[1769787740045,0.01475579,2742.3,2739.8,14.91019454]
[1769787740587,0.01475579,2742.1,2740.0,0.2335703]
[1769787740798,13.88036226,2741.4,2738.7,0.01475579]
[1769787740973,0.01475579,2740.5,2739.1,0.766]
[1769787741287,13.89511805,2741.0,2738.6,3.87434016]
[1769787741486,1.38951181,2740.9,2738.7,1.15243402]
[1769787741660,1.38951181,2740.9,2738.8,0.1024]
[1769787742054,0.01475579,2740.6,2738.8,0.1024]
[1769787742249,0.01475579,2740.8,2738.9,0.765]
[1769787742453,0.01475579,2740.6,2738.9,0.765]
[1769787743493,0.01475579,2740.8,2738.9,0.765]
[1769787743654,0.01475579,2739.4,2738.1,1.47262641]
[1769787743853,0.01475579,2739.5,2737.4,1.31781006]
[1769787744082,0.01475579,2739.3,2737.5,0.765]
[1769787744292,0.01475579,2739.1,2737.4,1.31781006]
[1769787744584,0.01475579,2738.3,2737.4,1.31781006]
[1769787744794,0.01475579,2738.3,2737.4,0.765]
[1769787744980,0.01475579,2738.8,2737.4,0.765]
[1769787745173,0.01475579,2738.7,2737.3,0.002]
[1769787745379,0.01475579,2738.5,2737.4,0.765]
[1769787745588,0.01475579,2739.0,2737.4,0.765]
[1769787745756,0.01475579,2738.6,2737.3,0.002]
[1769787745952,0.01475579,2738.8,2737.5,0.765]
[1769787746268,0.01475579,2738.6,2737.5,0.765]
[1769787746487,0.01475579,2738.8,2737.5,0.765]
[1769787746798,0.01475579,2738.8,2737.3,0.002]
[1769787746984,0.01475579,2738.6,2737.3,0.002]
[1769787747301,0.01475579,2738.5,2737.3,0.002]
[1769787748160,0.01475579,2738.2,2737.0,0.002]
[1769787748587,0.01475579,2738.0,2737.0,0.002]
[1769787748885,0.01475579,2737.8,2736.0,0.002]
[1769787749086,0.01475579,2737.6,2736.1,0.766]
[1769787749285,1.39098738,2737.8,2736.1,0.766]
[1769787749686,0.01475579,2738.3,2736.1,0.766]
[1769787750192,0.01475579,2738.1,2736.0,0.002]
[1769787750381,0.01475579,2738.3,2736.2,0.766]
[1769787750689,0.01475579,2738.1,2736.2,0.766]
[1769787751992,0.01475579,2737.7,2736.0,0.002]
[1769787752198,0.01475579,2737.9,2736.1,0.766]
[1769787752408,0.01475579,2737.7,2736.2,0.766]
[1769787752567,0.01475579,2737.7,2736.0,0.002]
[1769787752894,0.01475579,2737.5,2736.0,0.768]
[1769787753097,1.40574317,2737.5,2736.0,0.768]
[1769787753300,1.39098738,2737.5,2736.0,0.768]
[1769787753499,0.01475579,2737.9,2736.0,0.768]
[1769787753705,0.01475579,2738.8,2736.0,14.58115548]
[1769787753881,0.01475579,2738.4,2736.2,0.2335703]
[1769787754203,0.01475579,2738.8,2736.2,14.04672578]
[1769787754204,0.01475579,2738.5,2736.2,14.04672578]
[1769787754604,0.01475579,2738.3,2736.4,0.001]
[1769787754807,0.01475579,2738.3,2736.4,1.38241555]
[1769787754976,0.01475579,2738.1,2736.4,1.38241555]
[1769787755791,0.01475579,2738.3,2736.4,1.38241555]
[1769787756181,0.01475579,2738.5,2736.4,1.38241555]
[1769787756386,0.01475579,2738.5,2736.4,2.29602092]
[1769787756625,0.01475579,2738.5,2736.5,0.59505766]
[1769787756921,0.01475579,2738.5,2736.4,1.38241555]
[1769787757104,0.01475579,2738.3,2736.4,1.38241555]
[1769787758399,0.01475579,2738.5,2736.4,1.38241555]
[1769787758718,0.01475579,2738.3,2736.4,1.38241555]
[1769787761121,3.86775579,2738.8,2736.4,1.38241555]
[1769787761426,1.91376299,2738.7,2736.4,15.37458203]
[1769787761791,1.91376299,2738.7,2736.5,13.31214125]
[1769787762422,1.91376299,2738.7,2736.6,13.9921133]
[1769787763123,0.01475579,2738.6,2736.6,13.07857095]
[1769787763441,12.61904914,2738.0,2736.4,0.001]
[1769787763608,12.61904914,2738.0,2736.4,0.767]
[1769787763803,0.01475579,2738.4,2736.4,0.767]
[1769787764128,0.01475579,2738.2,2736.4,0.767]
[1769787764326,12.61904914,2738.2,2736.4,0.767]
[1769787764532,1.26190491,2738.1,2736.4,0.767]
[1769787765040,1.2766607,2738.1,2736.4,0.767]
[1769787765239,1.26190491,2738.1,2736.4,0.767]
[1769787766137,1.26190491,2738.1,2736.4,1.68059543]
[1769787766337,1.91376299,2738.7,2736.6,13.9921133]
[1769787766511,12.60429335,2739.2,2736.9,13.18097095]
[1769787766912,12.61904914,2739.1,2736.9,13.18097095]
[1769787767242,0.01475579,2738.9,2737.0,0.766]
[1769787768220,12.61904914,2738.4,2736.6,0.002]
[1769787768444,12.60429335,2738.1,2736.6,0.002]
[1769787768818,5.5149607,2738.3,2736.6,0.002]
[1769787768819,16.47204914,2738.0,2736.6,0.002]
[1769787769023,12.60429335,2737.9,2736.6,0.002]
[1769787769641,1.64720491,2738.3,2736.6,0.002]
[1769787770025,0.01475579,2737.9,2736.6,0.002]
[1769787770339,16.47204914,2737.8,2736.6,0.002]
[1769787770512,1.6619607,2737.7,2736.6,0.002]
[1769787770934,1.64720491,2737.7,2736.6,0.002]
[1769787771126,1.6619607,2737.7,2736.6,0.002]
[1769787771527,1.64720491,2737.7,2736.6,0.002]
[1769787771742,1.6619607,2737.7,2736.6,0.002]
[1769787771945,1.42662541,2737.6,2736.6,0.002]
[1769787775417,12.61904914,2738.3,2736.6,0.002]
[1769787775613,0.01475579,2737.9,2736.6,0.002]
[1769787776032,12.61904914,2737.9,2736.6,0.002]
[1769787776448,0.01475579,2737.7,2736.6,0.002]
[1769787778225,12.61904914,2737.9,2736.6,0.002]
[1769787778431,1.26190491,2737.8,2736.6,0.002]
[1769787778851,0.01475579,2737.7,2736.6,0.002]
[1769787779066,12.61904914,2737.7,2736.6,0.002]
[1769787779230,0.01475579,2737.7,2736.6,0.002]
[1769787780279,12.60429335,2737.4,2736.6,0.002]
[1769787780554,1.2766607,2737.3,2736.4,0.001]
[1769787780760,1.2766607,2737.3,2736.4,0.0002]
[1769787781329,1.26190491,2737.3,2736.4,0.0002]
[1769787781860,12.61904914,2737.7,2736.8,0.002]
[1769787782059,0.001,2737.5,2736.8,0.002]
[1769787782245,12.62004914,2737.5,2736.4,0.0002]
[1769787782552,0.01475579,2737.3,2736.4,0.0002]
[1769787782753,0.01475579,2737.1,2736.4,0.0002]
[1769787782954,1.26338049,2737.1,2736.4,0.0002]
[1769787783158,0.001,2737.5,2736.4,0.0002]
[1769787783957,0.766,2738.6,2736.5,13.84457095]
[1769787784454,0.766,2738.6,2736.6,13.9921133]
[1769787784658,0.766,2738.6,2736.8,13.07857095]
[1769787784958,0.001,2739.0,2737.0,13.07857095]
[1769787785155,0.001,2739.0,2737.2,13.07857095]
[1769787785324,12.60429335,2738.9,2737.1,1.30933267]
[1769787785524,0.001,2739.0,2736.5,0.01475579]
[1769787785525,0.766,2738.8,2736.5,13.99213967]
[1769787785723,0.01475579,2738.6,2736.5,13.99213967]
[1769787785945,0.01475579,2738.4,2736.5,13.99213453]
[1769787786155,1.26190491,2738.3,2736.6,1.39923345]
[1769787786357,1.26190491,2738.3,2736.6,2.31277187]
[1769787786769,1.26190491,2738.3,2736.6,1.39923345]
[1769787787059,0.01475579,2738.0,2736.4,0.0002]
[1769787787263,0.78075579,2738.0,2736.4,0.0002]
[1769787788364,0.766,2738.0,2736.4,0.0002]
[1769787788658,0.766,2738.0,2736.4,13.60591413]
[1769787789743,12.73233906,2738.6,2736.4,13.60591413]
[1769787789934,1.27323391,2738.5,2736.5,14.96778112]
[1769787790835,1.27323391,2738.5,2736.6,0.91354235]
[1769787791031,1.27323391,2738.5,2736.6,14.51925648]
[1769787791849,0.766,2738.6,2736.6,14.51925648]
[1769787792331,0.766,2738.6,2736.8,13.60571413]
[1769787792531,0.766,2738.6,2736.9,0.766]
[1769787792758,0.766,2738.6,2737.0,0.91340884]
[1769787793376,13.49833906,2738.6,2736.9,0.766]
[1769787793683,0.01475579,2738.4,2736.8,0.766]
[1769787793882,0.01475579,2738.2,2736.5,1.36206699]
[1769787794054,0.01475579,2738.2,2736.6,0.766]
[1769787794574,1.34983391,2738.5,2736.9,0.91341175]
[1769787794750,0.01475579,2738.8,2736.6,14.37171413]
[1769787794751,0.01475579,2738.4,2736.6,15.28524215]
[1769787794951,12.74709485,2738.6,2736.6,15.28524215]
[1769787795379,12.73233906,2738.6,2736.7,0.002]
[1769787795880,12.73233906,2738.6,2736.7,13.60771413]
[1769787795881,12.73333906,2738.6,2736.7,13.60771413]
[1769787796552,0.01475579,2738.5,2736.7,0.002]
[1769787796793,1.27333391,2738.5,2736.7,13.62246992]
[1769787796983,0.001,2738.6,2736.7,13.62246992]
[1769787797208,0.001,2738.6,2736.7,0.002]
[1769787797359,0.001,2738.6,2736.7,0.1044]
[1769787797686,0.01575579,2738.6,2736.7,0.1044]
[1769787797854,0.01475579,2738.4,2736.7,0.002]
[1769787798062,1.27628506,2738.4,2736.8,0.766]
[1769787798263,0.001,2738.6,2736.9,0.01475579]
[1769787798459,0.001,2738.6,2737.0,13.60571413]
[1769787798660,0.001,2738.6,2737.3,0.91330873]
[1769787798895,0.001,2738.6,2737.4,0.766]
[1769787799897,0.001,2738.6,2736.9,0.766]
[1769787799898,12.73333906,2738.6,2736.9,0.766]
[1769787800065,1.27333391,2738.5,2737.0,1.35539849]
[1769787800266,1.27333391,2738.5,2737.0,0.44199004]
[1769787800462,1.27333391,2738.5,2736.9,1.67942667]
[1769787800796,1.27333391,2738.5,2737.0,0.91340884]
[1769787800992,0.001,2738.6,2737.0,14.51912297]
[1769787801299,0.001,2738.6,2737.0,14.53387876]
[1769787801793,0.001,2739.0,2737.2,13.62046992]
[1769787801995,0.0002,2739.0,2737.3,13.60571413]
[1769787802294,0.0002,2739.0,2737.5,13.62046992]
[1769787802494,0.0002,2739.0,2737.6,14.37171413]
[1769787802888,0.0002,2739.0,2737.7,14.51888942]
[1769787804702,0.0002,2739.0,2737.8,0.766]
[1769787804898,0.0002,2739.0,2737.8,1.67912839]
[1769787805205,0.0002,2739.0,2737.9,0.53317028]
[1769787806391,0.0002,2739.0,2737.9,14.13888441]
[1769787806603,0.28593796,2739.8,2737.9,14.13888441]
[1769787806803,0.28593796,2739.8,2738.0,0.91307523]
[1769787807185,0.30069375,2739.8,2738.0,0.91307523]
[1769787807383,1.30330328,2739.7,2738.1,1.87042606]
[1769787808919,12.73233906,2739.6,2738.2,0.766]
[1769787810112,0.001,2739.5,2738.2,0.766]
[1769787810728,0.001,2739.5,2738.1,0.91303938]
[1769787811013,0.001,2739.5,2737.7,0.766]
[1769787811014,12.73233906,2739.2,2737.7,0.766]
[1769787811208,1.27323391,2739.1,2737.7,0.766]
[1769787811620,0.001,2739.5,2737.7,14.37171413]
[1769787811838,0.001,2739.5,2738.0,13.60571413]
[1769787812005,12.73333906,2739.5,2738.1,0.766]
[1769787812323,12.73233906,2739.3,2737.5,14.51895613]
[1769787812512,12.73233906,2739.3,2737.6,0.766]
[1769787812821,14.00567297,2739.3,2737.7,1.52849561]
[1769787813022,14.00567297,2739.3,2737.8,0.91314193]
[1769787813228,1.27333391,2739.3,2737.8,0.91314193]
[1769787813533,0.001,2739.5,2737.9,14.37171413]
[1769787814296,0.001,2739.5,2737.9,14.38646992]
[1769787815132,0.001,2739.5,2738.1,13.60571413]
[1769787815533,0.001,2739.5,2737.7,1.5432514]
[1769787815732,0.001,2739.5,2737.8,0.766]
[1769787815733,12.74709485,2739.4,2737.8,0.766]
[1769787815895,14.00714855,2739.3,2737.9,0.766]
[1769787816224,14.00714855,2739.3,2737.9,1.67910719]
[1769787816916,13.11235078,2739.1,2737.7,2.29449561]
[1769787817112,0.01475579,2739.0,2737.7,0.766]
[1769787817630,12.88449837,2738.8,2737.6,0.766]
[1769787817825,12.89925416,2738.7,2737.6,0.766]
[1769787818027,12.88449837,2738.7,2737.0,0.91338426]
[1769787818230,14.17442379,2738.7,2737.1,2.13608932]
[1769787818428,14.17442379,2738.7,2737.1,1.22271411]
[1769787818643,14.17442379,2738.7,2736.7,0.002]
[1769787818644,12.88449837,2738.2,2736.7,0.002]
[1769787818845,0.01475579,2738.3,2736.7,0.002]
[1769787818846,12.89925416,2738.0,2736.7,0.002]
[1769787819136,12.89925416,2737.9,2736.7,0.768]
[1769787820641,12.89925416,2737.9,2736.7,0.002]
[1769787821715,12.89925416,2737.9,2736.9,0.001]
[1769787821911,1.28992542,2737.8,2736.9,0.001]
[1769787822455,14.17442379,2737.8,2736.9,0.001]
[1769787822803,14.17442379,2737.8,2736.7,0.002]
[1769787822804,12.89925416,2737.7,2736.7,0.002]
[1769787823002,12.88449837,2737.3,2736.0,0.0014]
[1769787823231,12.89925416,2736.9,2736.0,0.0014]
[1769787823418,0.01475579,2736.7,2736.0,0.0014]
[1769787823619,0.01475579,2736.7,2735.4,0.002]
[1769787823819,12.88449837,2736.6,2735.4,0.002]
[1769787824131,13.52470237,2736.5,2735.4,0.002]
[1769787824347,14.31356861,2736.4,2735.4,0.002]
[1769787827107,14.31356861,2736.4,2735.2,0.94606066]
[1769787827108,12.88449837,2736.2,2735.2,0.94606066]
[1769787827311,0.640204,2736.3,2734.2,12.69502187]
[1769787827312,12.89925416,2735.9,2734.2,12.69502187]
[1769787827616,13.66525416,2735.9,2734.2,12.69502187]
[1769787827821,14.25102379,2735.8,2734.4,1.27170219]
[1769787828039,14.25102379,2735.8,2734.4,0.002]
[1769787828337,12.89925416,2735.7,2734.4,0.002]
[1769787828521,12.88449837,2735.7,2734.4,0.002]
[1769787828841,1.36652542,2735.8,2734.4,0.002]
[1769787829041,0.766,2735.9,2734.4,0.002]
[1769787829443,13.65049837,2735.9,2734.4,0.002]
[1769787829831,12.89925416,2735.8,2734.4,0.002]
[1769787830146,12.88449837,2735.8,2734.4,0.002]
[1769787830911,0.62544821,2736.3,2734.4,0.002]
[1769787831112,13.66525416,2736.9,2734.8,12.69302187]
[1769787831638,13.65049837,2736.9,2734.8,12.69302187]
[1769787831810,0.01475579,2736.6,2734.8,12.69302187]
[1769787832230,0.766,2736.9,2734.8,12.69302187]
[1769787832416,0.766,2736.9,2734.9,13.45902187]
[1769787832620,0.766,2736.9,2735.0,14.03892406]
[1769787834839,0.766,2736.9,2735.2,12.69302187]
[1769787835040,0.01475579,2737.5,2735.2,12.70777766]
[1769787835041,6.42,2737.5,2735.2,12.70777766]
[1769787835240,19.31925416,2737.7,2735.2,12.70777766]
[1769787835412,1.93192542,2737.6,2735.5,12.69302187]
[1769787835608,1.75012542,2737.6,2735.5,12.69302187]
[1769787836215,12.88449837,2737.6,2735.5,12.69302187]
[1769787836945,0.01475579,2737.5,2735.6,0.91387629]
[1769787837118,12.88449837,2737.6,2735.7,0.766]
[1769787837311,12.88449837,2737.6,2735.7,13.45902187]
[1769787838613,0.01475579,2737.5,2735.7,13.45902187]
[1769787838815,1.28992542,2737.4,2735.8,1.43728982]
[1769787839013,1.28992542,2737.4,2735.8,2.35107889]
[1769787840240,0.78075579,2737.9,2735.8,15.04410076]
[1769787840442,12.88449837,2738.2,2735.8,15.04410076]
[1769787840612,0.01475579,2738.1,2735.8,15.04410076]
[1769787840812,13.50994658,2738.2,2735.8,15.04410076]
[1769787841046,12.89925416,2737.9,2736.0,13.60676456]
[1769787841248,12.89925416,2737.7,2735.9,1.42812602]
[1769787841462,0.01475579,2737.3,2735.6,0.766]
[1769787841631,12.89925416,2737.3,2735.6,0.766]
[1769787841834,12.89925416,2737.3,2735.6,1.6798585]
[1769787842055,12.88449837,2736.8,2735.0,12.69302187]
[1769787842224,0.01475579,2736.9,2734.6,13.60920757]
[1769787842225,14.95517958,2736.7,2734.6,13.60920757]
[1769787842414,0.01475579,2736.5,2734.7,4.42269805]
[1769787842748,1.28992542,2736.7,2735.2,3.65602412]
[1769787842913,0.766,2737.1,2735.4,0.91394311]
[1769787843118,0.766,2737.1,2735.3,4.42180135]
[1769787843119,13.65049837,2737.1,2735.3,1.67996447]
[1769787843352,0.01475579,2737.0,2735.3,0.766]
[1769787843660,13.65049837,2737.1,2735.3,0.91396827]
[1769787843819,13.65049837,2737.1,2735.4,0.766]
[1769787844021,1.36504984,2737.0,2735.4,0.766]
[1769787844430,0.766,2737.1,2735.4,13.45902187]
[1769787844629,0.62544821,2737.0,2735.5,0.766]
[1769787844821,0.766,2737.1,2735.6,0.766]
[1769787845023,0.78075579,2737.1,2735.6,1.67985972]
[1769787845223,0.78075579,2737.1,2735.6,0.766]
[1769787845557,1.36652542,2737.0,2735.6,0.766]
[1769787845727,1.36652542,2737.0,2735.7,0.766]
[1769787846445,0.766,2737.1,2735.7,0.766]
[1769787847158,13.65049837,2737.6,2735.8,0.91380948]
[1769787847854,0.01475579,2737.5,2735.7,1.67981925]
[1769787848160,0.001,2736.8,2735.7,1.67981925]
[1769787849836,0.001,2736.8,2735.7,15.39598744]
[1769787850167,6.42,2737.8,2735.8,15.62051556]
[1769787850366,15.59835829,2738.1,2735.8,15.62051556]
[1769787850367,8.61507024,2738.1,2735.8,16.35777259]
[1769787850570,22.01835829,2738.1,2735.8,16.35777259]
[1769787850788,13.41804384,2738.0,2735.8,16.35777259]
[1769787850945,2.20331141,2737.9,2736.0,14.62991088]
[1769787852255,2.20331141,2737.9,2736.2,13.71616819]
[1769787852457,7.84907024,2738.1,2736.4,13.71616819]
[1769787852637,6.42,2738.1,2736.4,13.71616819]
[1769787853040,6.42,2738.1,2736.5,0.91357573]
[1769787853658,6.42,2738.1,2736.5,14.62974392]
[1769787853861,20.58928805,2738.4,2736.5,14.62974392]
[1769787854168,2.0589288,2738.3,2736.6,1.82840678]
[1769787854587,2.0589288,2738.3,2736.6,15.54457497]
[1769787854879,0.766,2738.4,2736.6,15.54457497]
[1769787855179,0.766,2738.4,2736.7,0.91350897]
[1769787855342,13.41804384,2738.9,2736.8,14.48216819]
[1769787855537,0.766,2738.8,2736.8,14.48216819]
[1769787856058,14.16928805,2738.8,2736.8,14.48216819]
[1769787856260,1.41840438,2738.7,2736.9,1.53956772]
[1769787856946,1.41840438,2738.7,2736.9,2.45297836]
[1769787857279,1.41840438,2738.7,2736.9,16.16914655]
[1769787857441,7.186,2739.0,2736.9,16.16914655]